bitfinex/quotes_BTCUSD_20250902
["timestamp","ask_amount","ask_price","bid_price","bid_amount"]
[1756824301732,0.22651705,111750.0,111740.0,5.16371]
[1756824301950,0.22848705,111750.0,111740.0,5.16052]
[1756824302709,0.22848705,111750.0,111740.0,5.15852]
[1756824302914,1.0713165,111750.0,111740.0,5.15852]
[1756824303117,1.03445051,111750.0,111740.0,5.001]
[1756824303294,1.03445051,111750.0,111740.0,5.15852]
[1756824303704,1.03445051,111750.0,111740.0,5.001]
[1756824304066,1.53197051,111750.0,111740.0,5.001]
[1756824304471,1.53197051,111750.0,111740.0,4.59619421]
[1756824304681,1.51795902,111750.0,111740.0,4.53984765]
[1756824305078,1.54962675,111750.0,111740.0,4.53984765]
[1756824305293,1.55062675,111750.0,111740.0,4.53984765]
[1756824305489,1.54862675,111750.0,111740.0,4.53984765]
[1756824305721,1.54762675,111750.0,111740.0,4.53984765]
[1756824305929,1.55062675,111750.0,111740.0,4.53984765]
[1756824306136,1.52295902,111750.0,111740.0,4.53984765]
[1756824306783,0.65139155,111750.0,111740.0,4.69936765]
[1756824307044,1.30733902,111750.0,111740.0,4.69936765]
[1756824307251,0.21750556,111750.0,111740.0,4.70255765]
[1756824307923,0.22523624,111750.0,111740.0,4.70255765]
[1756824308393,0.00534047,111750.0,111740.0,4.97346057]
[1756824308592,0.18231138,111750.0,111740.0,4.97346057]
[1756824308792,0.18231138,111750.0,111740.0,4.79443364]
[1756824308961,0.18231138,111750.0,111740.0,4.97342057]
[1756824309166,0.00134047,111750.0,111740.0,4.97342057]
[1756824309374,0.00134047,111750.0,111740.0,5.65030686]
[1756824309548,0.00134047,111750.0,111740.0,5.99030686]
[1756824309761,0.00134047,111750.0,111740.0,6.18754686]
[1756824311178,0.00134047,111750.0,111740.0,6.43306686]
[1756824311411,0.00134047,111750.0,111740.0,6.59054686]
[1756824311644,0.00034047,111750.0,111740.0,6.43306686]
[1756824311878,0.00034047,111750.0,111740.0,6.59154686]
[1756824312325,0.00034047,111750.0,111740.0,6.63221799]
[1756824312554,0.00034047,111750.0,111740.0,5.41779052]
[1756824312780,0.00034047,111750.0,111740.0,5.57927052]
[1756824313047,0.00034047,111750.0,111740.0,6.23521799]
[1756824313289,0.01434912,111750.0,111740.0,6.22821799]
[1756824313703,0.01434912,111750.0,111740.0,5.99724475]
[1756824313966,0.01434912,111750.0,111740.0,5.99324475]
[1756824314429,0.01434912,111750.0,111740.0,6.05024475]
[1756824314974,0.01434912,111750.0,111740.0,6.07714362]
[1756824314975,0.00034047,111750.0,111740.0,6.07714362]
[1756824315613,0.00034047,111750.0,111740.0,6.08014362]
[1756824315832,0.0002,111760.0,111750.0,1.48185819]
[1756824316165,0.0002,111760.0,111750.0,1.73422418]
[1756824316401,0.0002,111760.0,111750.0,1.73623418]
[1756824316820,0.0002,111760.0,111750.0,2.13623418]
[1756824317054,0.0002,111760.0,111750.0,1.97879418]
[1756824317261,0.0002,111760.0,111750.0,2.13623418]
[1756824317634,0.0012,111760.0,111750.0,2.14823418]
[1756824319840,0.0012,111760.0,111750.0,2.14819418]
[1756824320266,1e-08,111760.0,111750.0,2.14819418]
[1756824320489,0.0002,111790.0,111780.0,0.51892288]
[1756824320693,0.00066812,111790.0,111780.0,1.27323192]
[1756824320900,0.00066812,111790.0,111780.0,1.27825192]
[1756824321305,0.00066812,111790.0,111780.0,1.70514293]
[1756824321755,0.00066812,111790.0,111780.0,1.74538843]
[1756824322214,0.00066812,111790.0,111780.0,1.79938843]
[1756824322448,0.00066812,111790.0,111780.0,1.64198843]
[1756824322888,0.00066812,111790.0,111780.0,1.79938843]
[1756824323451,0.00066812,111790.0,111780.0,1.59398843]
[1756824323633,0.00066812,111790.0,111780.0,1.75134843]
[1756824324040,0.00277812,111790.0,111780.0,1.15207538]
[1756824324250,0.00277812,111790.0,111780.0,0.87953437]
[1756824324485,0.00277812,111790.0,111780.0,1.32144742]
[1756824324793,0.00066812,111790.0,111780.0,1.32445742]
[1756824325418,0.00277812,111790.0,111780.0,1.16408742]
[1756824325657,0.00277812,111790.0,111780.0,1.32144742]
[1756824326268,0.00277812,111790.0,111780.0,0.56218031]
[1756824326493,0.24285499,111790.0,111780.0,0.1093255]
[1756824326915,0.24285499,111790.0,111780.0,0.2666855]
[1756824327356,0.24285499,111790.0,111780.0,0.22644]
[1756824327586,0.24285499,111790.0,111780.0,0.22444]
[1756824327821,0.66382922,111790.0,111780.0,0.16236]
[1756824328087,0.75574521,111790.0,111780.0,0.001]
[1756824328310,0.76198646,111790.0,111780.0,0.15836]
[1756824328546,0.34101223,111790.0,111780.0,0.004]
[1756824328774,1.10198646,111790.0,111780.0,0.004]
[1756824329326,1.14330254,111790.0,111780.0,0.004]
[1756824329624,1.14330254,111790.0,111780.0,0.001]
[1756824329868,0.17892288,111780.0,111770.0,0.15736]
[1756824330068,0.76133435,111780.0,111770.0,0.15736]
[1756824330283,0.1789549,111760.0,111740.0,4.58043411]
[1756824330528,0.66322514,111750.0,111740.0,4.53984765]
[1756824330743,0.66322514,111750.0,111740.0,4.69716765]
[1756824330744,0.3341669,111750.0,111740.0,4.69716765]
[1756824330918,0.75514113,111750.0,111740.0,4.69716765]
[1756824331114,0.76138801,111750.0,111740.0,4.69720765]
[1756824332315,0.76138801,111750.0,111740.0,4.69820765]
[1756824332736,0.34041378,111750.0,111740.0,4.69820765]
[1756824332950,0.76138801,111750.0,111740.0,4.69820765]
[1756824333781,0.34041378,111750.0,111740.0,4.69820765]
[1756824333988,0.76138801,111750.0,111740.0,4.69920765]
[1756824334203,0.34041378,111750.0,111740.0,4.69920765]
[1756824334424,0.3311069,111750.0,111740.0,4.69920765]
[1756824334633,0.2729969,111750.0,111740.0,4.69920765]
[1756824334846,0.18108091,111750.0,111740.0,4.69920765]
[1756824335283,0.00211,111750.0,111740.0,4.69920765]
[1756824335505,0.17897091,111750.0,111740.0,4.70422765]
[1756824336225,0.18108091,111750.0,111740.0,4.70121765]
[1756824336442,0.18108091,111750.0,111740.0,4.69920765]
[1756824336643,0.18108091,111750.0,111740.0,4.70121765]
[1756824337053,0.18108091,111750.0,111740.0,4.54385765]
[1756824337242,0.18108091,111750.0,111740.0,4.69920765]
[1756824337464,0.18108091,111750.0,111740.0,4.70121765]
[1756824338309,0.18108091,111750.0,111740.0,4.69920765]
[1756824338495,0.60511514,111750.0,111740.0,4.69920765]
[1756824338906,0.60205514,111750.0,111740.0,4.69920765]
[1756824339327,0.18108091,111750.0,111740.0,4.69920765]
[1756824339462,0.18108091,111750.0,111740.0,4.70123765]
[1756824339922,0.76007197,111750.0,111740.0,4.54184765]
[1756824340193,1.31913231,111750.0,111740.0,4.54184765]
[1756824340379,1.2870997,111750.0,111740.0,4.54184765]
[1756824340787,1.25743197,111750.0,111740.0,4.54184765]
[1756824341241,0.70601271,111750.0,111740.0,4.54184765]
[1756824341448,1.12698694,111750.0,111740.0,4.54184765]
[1756824341624,1.28434694,111750.0,111740.0,4.54184765]
[1756824341766,0.86337271,111750.0,111740.0,4.54184765]
[1756824341962,1.28434694,111750.0,111740.0,4.54184765]
[1756824343223,1.28434694,111750.0,111740.0,4.54084765]
[1756824343403,1.29836047,111750.0,111740.0,4.54084765]
[1756824343644,1.30036047,111750.0,111740.0,4.54084765]
[1756824344065,1.29836047,111750.0,111740.0,4.54084765]
[1756824344240,1.29836047,111750.0,111740.0,4.53984765]
[1756824344469,1.39127646,111750.0,111740.0,4.53984765]
[1756824344695,1.30136047,111750.0,111740.0,4.53984765]
[1756824344873,1.14400047,111750.0,111740.0,4.53984765]
[1756824345032,1.30136047,111750.0,111740.0,4.53984765]
[1756824345233,0.88038624,111750.0,111740.0,4.53984765]
[1756824345440,1.30034907,111750.0,111740.0,4.53984765]
[1756824345829,1.39326506,111750.0,111740.0,4.53984765]
[1756824346028,0.88037484,111750.0,111740.0,4.53984765]
[1756824346232,1.30134907,111750.0,111740.0,4.53984765]
[1756824346785,1.29934907,111750.0,111740.0,4.53984765]
[1756824347195,1.30134907,111750.0,111740.0,4.69720765]
[1756824347462,1.30034907,111750.0,111740.0,4.53984765]
[1756824347670,1.29834907,111750.0,111740.0,4.53984765]
[1756824348582,1.29834907,111750.0,111740.0,4.69720765]
[1756824349810,0.66326484,111750.0,111740.0,4.69923765]
[1756824350256,1.08423907,111750.0,111740.0,4.69923765]
[1756824350439,1.07902907,111750.0,111740.0,4.69720765]
[1756824350651,1.12399321,111750.0,111740.0,4.53984765]
[1756824350901,1.08116907,111750.0,111740.0,4.69716765]
[1756824351076,1.08116907,111750.0,111740.0,4.69919765]
[1756824351333,1.07902907,111750.0,111740.0,4.70217765]
[1756824351543,0.65805484,111750.0,111740.0,4.70317765]
[1756824351758,1.06501554,111750.0,111740.0,4.70217765]
[1756824351943,0.64404131,111750.0,111740.0,4.70217765]
[1756824352208,0.18521035,111750.0,111740.0,4.70217765]
[1756824352390,0.17897091,111750.0,111740.0,4.70217765]
[1756824353260,0.18522159,111750.0,111740.0,4.54485765]
[1756824353468,0.18522159,111750.0,111740.0,4.70217765]
[1756824354317,0.18522159,111750.0,111740.0,4.54485765]
[1756824354508,0.18522159,111750.0,111740.0,4.70317765]
[1756824356434,0.18524659,111750.0,111740.0,4.70317765]
[1756824357210,0.19925826,111750.0,111740.0,4.70317765]
[1756824357988,0.19925826,111750.0,111740.0,4.54585765]
[1756824358198,0.19925826,111750.0,111740.0,4.70317765]
[1756824359007,0.19925826,111750.0,111740.0,4.54585765]
[1756824359203,0.19925826,111750.0,111740.0,4.70317765]
[1756824359438,0.19925826,111750.0,111740.0,4.88216458]
[1756824359439,0.02028735,111750.0,111740.0,4.88216458]
[1756824359624,0.19925826,111750.0,111740.0,4.70317765]
[1756824360036,0.19925826,111750.0,111740.0,4.70313765]
[1756824361465,0.02028735,111750.0,111740.0,4.88212458]
[1756824361667,0.02028735,111750.0,111740.0,5.30309881]
[1756824361863,0.18790015,111770.0,111750.0,0.17896117]
[1756824362063,0.18522546,111770.0,111760.0,0.3412449]
[1756824362769,0.18522546,111770.0,111760.0,0.00501]
[1756824362979,0.18736546,111770.0,111760.0,0.00501]
[1756824363182,0.1789549,111760.0,111750.0,0.00298]
[1756824363381,0.18524147,111760.0,111750.0,0.16026]
[1756824363616,0.18524147,111760.0,111750.0,0.16229]
[1756824363784,0.18738147,111760.0,111750.0,0.15728]
[1756824363985,0.18738147,111760.0,111750.0,0.00203]
[1756824364341,0.17897091,111750.0,111740.0,4.60590765]
[1756824364553,0.18525748,111750.0,111740.0,4.76521765]
[1756824364958,0.19926813,111750.0,111740.0,4.76521765]
[1756824365377,0.19926813,111750.0,111740.0,4.94420458]
[1756824365579,0.01401065,111750.0,111740.0,4.76521765]
[1756824365779,0.20140268,111750.0,111740.0,4.61093765]
[1756824365981,0.7173929,111750.0,111740.0,4.54284765]
[1756824366203,1.14381063,111750.0,111740.0,4.02128821]
[1756824366409,1.20149027,111750.0,111740.0,3.60546392]
[1756824366882,1.20149027,111750.0,111740.0,3.37715947]
[1756824367063,1.20149027,111750.0,111740.0,3.23242623]
[1756824367293,1.17584324,111750.0,111740.0,3.11163713]
[1756824367502,1.2713829,111750.0,111740.0,3.11163713]
[1756824367924,1.2713829,111750.0,111740.0,3.10963713]
[1756824368105,1.2713829,111750.0,111740.0,3.10563713]
[1756824368532,1.2733829,111750.0,111740.0,3.10563713]
[1756824368723,1.14232123,111750.0,111740.0,3.10563713]
[1756824368871,1.39147722,111750.0,111740.0,3.10563713]
[1756824369109,1.29956123,111750.0,111740.0,3.10563713]
[1756824369294,1.30056123,111750.0,111740.0,3.10563713]
[1756824370122,1.14332123,111750.0,111740.0,3.10563713]
[1756824370326,0.876527,111750.0,111740.0,3.10563713]
[1756824370538,1.22747985,111750.0,111740.0,3.26287713]
[1756824371570,1.28596791,111750.0,111740.0,3.26287713]
[1756824372512,1.28596791,111750.0,111740.0,3.10563713]
[1756824372715,1.22747985,111750.0,111740.0,3.10563713]
[1756824373165,1.22740985,111750.0,111740.0,3.10763713]
[1756824373570,1.23055985,111750.0,111740.0,3.10563713]
[1756824374142,1.24142325,111750.0,111740.0,3.10563713]
[1756824374312,1.24142187,111750.0,111740.0,3.10563713]
[1756824375243,1.24142187,111750.0,111740.0,3.10763713]
[1756824375472,1.24142187,111750.0,111740.0,3.10563713]
[1756824375680,1.47629317,111750.0,111740.0,3.10563713]
[1756824375892,1.56820916,111750.0,111740.0,3.10563713]
[1756824376446,1.57135916,111750.0,111740.0,3.10563713]
[1756824376656,1.47944317,111750.0,111740.0,3.10563713]
[1756824377891,1.32220317,111750.0,111740.0,3.10563713]
[1756824378095,1.47944317,111750.0,111740.0,3.10563713]
[1756824378646,1.47629317,111750.0,111740.0,3.10563713]
[1756824378803,1.47944317,111750.0,111740.0,3.10563713]
[1756824379010,1.47629317,111750.0,111740.0,3.10563713]
[1756824379949,1.47629317,111750.0,111740.0,3.10763713]
[1756824380169,1.47629317,111750.0,111740.0,3.10563713]
[1756824380403,1.41096916,111750.0,111740.0,3.26487713]
[1756824380620,0.32109764,111750.0,111740.0,3.26791713]
[1756824380844,0.29418004,111750.0,111740.0,3.26791713]
[1756824381052,0.18825065,111750.0,111740.0,3.26791713]
[1756824381498,0.003,111750.0,111740.0,4.10274959]
[1756824382158,0.003,111750.0,111740.0,4.5556044]
[1756824382667,0.002,111750.0,111740.0,4.5556044]
[1756824382880,0.17893894,111770.0,111750.0,0.17896122]
[1756824383099,0.2060116,111790.0,111760.0,0.99708043]
[1756824383321,0.17892288,111780.0,111770.0,0.00304]
[1756824383723,0.17892288,111780.0,111770.0,0.00504]
[1756824383936,0.17892288,111780.0,111770.0,0.1592]
[1756824384275,0.19293071,111780.0,111770.0,0.16224]
[1756824384554,0.19293071,111780.0,111770.0,0.00504]
[1756824384761,0.17893889,111770.0,111760.0,0.16024]
[1756824385195,0.17893889,111770.0,111760.0,0.16224]
[1756824385399,0.17893889,111770.0,111760.0,0.00504]
[1756824385614,0.2848467,111780.0,111760.0,0.3411949]
[1756824385853,0.19293071,111780.0,111770.0,0.00304]
[1756824386288,0.19293071,111780.0,111770.0,0.00504]
[1756824386536,0.2848467,111780.0,111770.0,0.00504]
[1756824386748,0.2848467,111780.0,111770.0,0.16224]
[1756824388215,0.01400783,111780.0,111770.0,0.16224]
[1756824388446,0.19293071,111780.0,111770.0,0.00604]
[1756824388664,0.19293071,111780.0,111770.0,0.1632]
[1756824389731,0.01400783,111780.0,111770.0,0.1632]
[1756824389942,0.01400783,111780.0,111770.0,0.34213889]
[1756824390153,0.18852033,111790.0,111770.0,0.34213889]
[1756824390369,0.17892288,111780.0,111770.0,0.16016]
[1756824390586,0.17892288,111780.0,111770.0,0.18291872]
[1756824391048,0.17892288,111780.0,111770.0,0.1632]
[1756824391264,0.18852033,111790.0,111770.0,0.34213889]
[1756824391494,0.17892288,111780.0,111770.0,0.33909889]
[1756824392102,0.17892288,111780.0,111770.0,0.34213889]
[1756824392333,0.17892288,111780.0,111770.0,0.18397889]
[1756824392580,0.17892288,111780.0,111770.0,0.34113889]
[1756824392869,0.18852033,111790.0,111770.0,0.34113889]
[1756824393075,0.18852033,111790.0,111770.0,0.33809889]
[1756824393311,0.19293019,111780.0,111770.0,0.18093889]
[1756824393524,0.19293019,111780.0,111770.0,0.15912]
[1756824393718,0.19293019,111780.0,111770.0,0.16216]
[1756824394042,0.19293019,111780.0,111770.0,0.16316]
[1756824394532,0.19293019,111780.0,111770.0,0.34209889]
[1756824396663,0.01400731,111780.0,111770.0,0.60459889]
[1756824397075,0.19293019,111780.0,111770.0,0.60459889]
[1756824397496,0.19293019,111780.0,111770.0,0.42566]
[1756824397643,0.19293019,111780.0,111770.0,0.26854]
[1756824398056,0.19504019,111780.0,111770.0,0.42262]
[1756824398349,0.19504019,111780.0,111770.0,0.2655]
[1756824398561,0.19293019,111780.0,111770.0,0.26854]
[1756824398900,0.19504019,111780.0,111770.0,0.42062]
[1756824399227,0.28695618,111780.0,111770.0,0.2635]
[1756824399491,0.27608887,111780.0,111770.0,0.2635]
[1756824399723,0.9319344,111780.0,111770.0,0.2635]
[1756824399894,0.52649219,111780.0,111770.0,0.001]
[1756824400107,1.21437033,111780.0,111770.0,0.001]
[1756824400331,1.67007774,111780.0,111770.0,0.001]
[1756824400617,0.86061588,111780.0,111770.0,0.001]
[1756824400849,0.83706446,111780.0,111770.0,0.001]
[1756824401077,0.17893889,111770.0,111760.0,0.15728]
[1756824401307,0.17896091,111760.0,111740.0,3.35094375]
[1756824401573,0.18210091,111760.0,111750.0,0.15736]
[1756824401812,0.18111091,111760.0,111750.0,0.17897091]
[1756824402075,0.00215,111760.0,111750.0,0.33865091]
[1756824402692,0.1811049,111760.0,111750.0,0.33873091]
[1756824402904,0.00215,111760.0,111750.0,0.33873091]
[1756824403108,0.27085488,111770.0,111760.0,0.1789549]
[1756824403323,0.09191599,111770.0,111760.0,0.1843549]
[1756824403524,0.27085488,111770.0,111760.0,0.0054]
[1756824403674,0.27300488,111770.0,111760.0,0.00216]
[1756824403878,0.27300488,111770.0,111760.0,0.0054]
[1756824404163,0.27300488,111770.0,111760.0,0.00216]
[1756824404345,0.27085488,111770.0,111760.0,0.0054]
[1756824404563,0.1789549,111760.0,111750.0,0.003]
[1756824404762,0.17897091,111750.0,111740.0,3.16871713]
[1756824404993,0.18112091,111750.0,111740.0,3.26539713]
[1756824405201,0.18112091,111750.0,111740.0,3.10779713]
[1756824405423,0.17897091,111750.0,111740.0,3.26867713]
[1756824406326,0.18112091,111750.0,111740.0,3.10779713]
[1756824406529,0.18112091,111750.0,111740.0,3.10563713]
[1756824406729,0.93829106,111750.0,111740.0,3.10663713]
[1756824407118,0.28244553,111750.0,111740.0,3.10663713]
[1756824407324,0.28244553,111750.0,111740.0,3.10963713]
[1756824407621,0.93829106,111750.0,111740.0,3.10663713]
[1756824407876,1.05047088,111750.0,111740.0,3.10763713]
[1756824408547,0.39462535,111750.0,111740.0,3.10763713]
[1756824408759,0.37152354,111750.0,111740.0,3.10763713]
[1756824408942,0.37152354,111750.0,111740.0,3.10663713]
[1756824409466,0.3947943,111750.0,111740.0,3.10663713]
[1756824409942,1.10803983,111750.0,111740.0,3.10663713]
[1756824410445,1.01896182,111750.0,111740.0,3.10663713]
[1756824410661,1.01896182,111750.0,111740.0,3.10563713]
[1756824411102,1.02096182,111750.0,111740.0,3.10563713]
[1756824411721,1.05062955,111750.0,111740.0,3.10563713]
[1756824412131,1.39062955,111750.0,111740.0,3.10563713]
[1756824412333,1.48354554,111750.0,111740.0,3.10563713]
[1756824412550,1.51932182,111750.0,111740.0,3.10563713]
[1756824413102,1.36196182,111750.0,111740.0,3.10563713]
[1756824413389,1.51618182,111750.0,111740.0,3.10563713]
[1756824413599,1.51618182,111750.0,111740.0,3.26295713]
[1756824413817,1.51932182,111750.0,111740.0,3.10563713]
[1756824414033,1.57595422,111750.0,111740.0,3.10563713]
[1756824415513,1.41859422,111750.0,111740.0,3.10563713]
[1756824415772,1.57583422,111750.0,111740.0,3.10563713]
[1756824415988,0.75960869,111750.0,111740.0,3.10563713]
[1756824416209,1.51525422,111750.0,111740.0,3.10563713]
[1756824416880,0.62230553,111750.0,111740.0,3.10779713]
[1756824417094,0.62015553,111750.0,111740.0,3.11103713]
[1756824417504,0.28015553,111750.0,111740.0,3.11103713]
[1756824418891,0.28230553,111750.0,111740.0,3.26495713]
[1756824419091,0.28015553,111750.0,111740.0,3.26819713]
[1756824420569,0.93815106,111750.0,111740.0,3.26279713]
[1756824420796,0.28015553,111750.0,111740.0,3.26819713]
[1756824421785,0.28015553,111750.0,111740.0,3.26869713]
[1756824422916,0.18823954,111750.0,111740.0,3.26869713]
[1756824423118,0.18197091,111750.0,111740.0,3.26869713]
[1756824423261,0.18197091,111750.0,111740.0,3.53119713]
[1756824424321,0.18197091,111750.0,111740.0,3.71018406]
[1756824424940,0.18197091,111750.0,111740.0,3.37403713]
[1756824425482,0.18197091,111750.0,111740.0,3.53119713]
[1756824425662,0.18097091,111750.0,111740.0,3.37403713]
[1756824425799,0.18097091,111750.0,111740.0,3.53119713]
[1756824426179,0.17897091,111750.0,111740.0,3.57249719]
[1756824426390,0.18112091,111750.0,111740.0,3.37403713]
[1756824426610,1.11298631,111750.0,111740.0,3.52679713]
[1756824426824,0.45400078,111750.0,111740.0,3.52895713]
[1756824426953,0.45400078,111750.0,111740.0,3.53219713]
[1756824426954,0.2771598,111750.0,111740.0,3.53219713]
[1756824427384,0.2771598,111750.0,111740.0,3.53119713]
[1756824427799,0.18524381,111750.0,111740.0,3.26869713]
[1756824429065,0.19296737,111760.0,111740.0,3.29052406]
[1756824429268,0.17897091,111750.0,111740.0,3.28728406]
[1756824429473,0.17897091,111750.0,111740.0,3.44444406]
[1756824429684,0.19296737,111760.0,111740.0,4.10028959]
[1756824429881,0.17893889,111770.0,111750.0,0.1601]
[1756824430150,0.00628136,111770.0,111750.0,0.00294]
[1756824430356,0.00628136,111770.0,111760.0,0.15812]
[1756824430560,0.00628136,111770.0,111760.0,0.3400149]
[1756824430972,0.00628136,111770.0,111760.0,0.3390149]
[1756824431345,0.00836136,111770.0,111760.0,0.3594578]
[1756824431527,0.00836136,111770.0,111760.0,0.3624178]
[1756824431726,0.00628136,111770.0,111760.0,0.3653578]
[1756824432752,0.67630699,111790.0,111780.0,0.17892288]
[1756824432949,0.67630699,111790.0,111780.0,0.15912]
[1756824432950,0.77705,111790.0,111780.0,0.15912]
[1756824433148,0.77705,111790.0,111780.0,0.00196]
[1756824433361,0.61985,111790.0,111770.0,0.33902452]
[1756824433558,0.09191599,111780.0,111770.0,0.33902452]
[1756824433783,0.09819489,111780.0,111770.0,0.33902452]
[1756824434082,0.09819489,111780.0,111770.0,0.34098452]
[1756824434382,0.11220383,111780.0,111770.0,0.34098452]
[1756824434812,0.11220209,111780.0,111770.0,0.34098452]
[1756824435023,0.11220209,111780.0,111770.0,0.34198452]
[1756824436534,0.0202861,111780.0,111770.0,0.76293136]
[1756824436745,0.01400894,111780.0,111770.0,0.76293136]
[1756824438530,0.01400894,111780.0,111770.0,0.18482452]
[1756824438752,0.01400894,111780.0,111770.0,0.34195889]
[1756824440148,0.01400894,111780.0,111770.0,0.76290573]
[1756824440546,0.01400894,111780.0,111770.0,0.34195889]
[1756824441199,0.01400894,111780.0,111770.0,0.18483889]
[1756824441406,0.01400894,111780.0,111770.0,0.34195889]
[1756824442028,0.01400894,111780.0,111770.0,0.18483889]
[1756824442252,1.13338883,111780.0,111770.0,0.001]
[1756824442490,1.18108023,111780.0,111770.0,0.001]
[1756824442714,1.30616762,111780.0,111770.0,0.001]
[1756824442922,1.27649989,111780.0,111770.0,0.001]
[1756824443145,1.11937989,111780.0,111770.0,0.001]
[1756824443822,1.14904762,111780.0,111770.0,0.001]
[1756824444982,1.25714145,111780.0,111770.0,0.001]
[1756824445199,1.12056378,111780.0,111770.0,0.001]
[1756824445833,1.27768378,111780.0,111770.0,0.001]
[1756824446485,0.85673694,111780.0,111770.0,0.001]
[1756824446674,1.27768378,111780.0,111770.0,0.001]
[1756824446849,1.29907204,111780.0,111770.0,0.001]
[1756824447165,1.11752378,111780.0,111770.0,0.001]
[1756824447471,0.69657694,111780.0,111770.0,0.001]
[1756824447690,1.27800378,111780.0,111770.0,0.001]
[1756824449159,1.12056378,111780.0,111770.0,0.001]
[1756824449362,0.85701694,111780.0,111770.0,0.001]
[1756824449572,1.27796378,111780.0,111770.0,0.001]
[1756824449980,1.36987977,111780.0,111770.0,0.001]
[1756824450409,1.39081859,111780.0,111770.0,0.001]
[1756824450622,1.23341859,111780.0,111770.0,0.001]
[1756824450843,1.29891558,111780.0,111770.0,0.001]
[1756824451954,1.21800676,111780.0,111770.0,0.001]
[1756824452172,1.22104676,111780.0,111770.0,0.001]
[1756824452413,1.27789676,111780.0,111770.0,0.001]
[1756824452600,1.27861676,111780.0,111770.0,0.001]
[1756824452744,1.19808372,111780.0,111770.0,0.001]
[1756824452953,1.27861676,111780.0,111770.0,0.001]
[1756824454194,1.25807443,111780.0,111770.0,0.001]
[1756824454591,1.10003443,111780.0,111770.0,0.001]
[1756824454810,1.25807443,111780.0,111770.0,0.001]
[1756824455895,1.28498542,111780.0,111770.0,0.001]
[1756824456135,1.39784023,111780.0,111770.0,0.001]
[1756824456350,0.93991775,111750.0,111740.0,3.10613713]
[1756824456559,1.19831246,111750.0,111740.0,3.10613713]
[1756824456776,0.61716562,111750.0,111740.0,3.11103713]
[1756824457178,0.64408003,111750.0,111740.0,3.11103713]
[1756824457552,0.30408003,111750.0,111740.0,3.26919713]
[1756824457771,0.30408003,111750.0,111740.0,3.27219713]
[1756824458991,1.22822687,111750.0,111740.0,3.10913713]
[1756824459196,1.22822687,111750.0,111740.0,3.11313713]
[1756824459614,1.24223902,111750.0,111740.0,3.11313713]
[1756824459829,1.30237902,111750.0,111740.0,3.11313713]
[1756824460042,0.86446003,111750.0,111740.0,3.11313713]
[1756824460217,1.28540687,111750.0,111740.0,3.11313713]
[1756824461435,1.28862687,111750.0,111740.0,3.11313713]
[1756824461856,1.38054286,111750.0,111740.0,3.11313713]
[1756824462069,0.86446003,111750.0,111740.0,3.11313713]
[1756824462306,1.28862687,111750.0,111740.0,3.11313713]
[1756824462560,1.35956569,111750.0,111740.0,2.46622002]
[1756824462789,1.14818569,111750.0,111740.0,2.46622002]
[1756824463013,1.37768286,111750.0,111740.0,2.46622002]
[1756824463489,1.37768286,111750.0,111740.0,2.46322002]
[1756824463694,1.37768286,111750.0,111740.0,2.46622002]
[1756824463881,1.2396402,111750.0,111740.0,2.46424002]
[1756824464105,1.2396402,111750.0,111740.0,2.46622002]
[1756824464316,1.259239,111750.0,111740.0,2.46322002]
[1756824464538,1.259239,111750.0,111740.0,2.46622002]
[1756824464539,1.262459,111750.0,111740.0,2.46622002]
[1756824464746,1.259239,111750.0,111740.0,2.46824002]
[1756824465102,1.759239,111750.0,111740.0,2.46622002]
[1756824465313,1.759239,111750.0,111740.0,2.46222002]
[1756824465515,1.33617216,111750.0,111740.0,2.46747002]
[1756824465885,1.757079,111750.0,111740.0,2.47147002]
[1756824466317,1.5790402,111750.0,111740.0,2.47147002]
[1756824466528,1.7428902,111750.0,111740.0,2.46622002]
[1756824466757,1.7428902,111750.0,111740.0,1.91388308]
[1756824466758,1.40302218,111750.0,111740.0,1.91388308]
[1756824466973,1.50318849,111750.0,111740.0,1.6064239]
[1756824467182,1.59510448,111750.0,111740.0,1.54473221]
[1756824467390,6.63642101,111750.0,111740.0,1.54473221]
[1756824467602,6.88642101,111750.0,111740.0,1.54473221]
[1756824467820,7.29336112,111750.0,111740.0,0.52718083]
[1756824468031,7.34336112,111750.0,111740.0,0.14616438]
[1756824468240,7.29336112,111750.0,111740.0,0.04572664]
[1756824468448,7.34336112,111750.0,111740.0,0.02747602]
[1756824468652,7.28194078,111750.0,111740.0,0.02747602]
[1756824468928,7.28194078,111750.0,111740.0,1e-08]
[1756824469344,7.26160851,111750.0,111740.0,1e-08]
[1756824469546,7.26160851,111750.0,111690.0,0.07354631]
[1756824469547,0.53998984,111700.0,111690.0,0.07354631]
[1756824469754,1.30280584,111700.0,111690.0,0.07354631]
[1756824469961,1.22095805,111700.0,111690.0,0.07354631]
[1756824470418,1.2478901,111700.0,111690.0,0.07354631]
[1756824470600,0.51906706,111690.0,111680.0,0.00323]
[1756824470810,1.03916527,111690.0,111680.0,0.00323]
[1756824471032,1.03929078,111690.0,111680.0,0.00525]
[1756824471206,1.19797078,111690.0,111680.0,0.00525]
[1756824471435,0.77605701,111690.0,111680.0,0.00525]
[1756824471617,0.77597701,111690.0,111680.0,0.00525]
[1756824471816,1.19789078,111690.0,111680.0,0.00525]
[1756824472019,1.28978616,111690.0,111680.0,0.00525]
[1756824472220,0.17909913,111670.0,111660.0,0.12193]
[1756824472433,0.27101512,111670.0,111660.0,0.12193]
[1756824472836,0.27101512,111670.0,111660.0,0.12395]
[1756824473241,0.27101512,111670.0,111660.0,0.00202]
[1756824473444,0.27201512,111670.0,111660.0,0.01302]
[1756824473617,0.27201512,111670.0,111660.0,0.17154]
[1756824474367,0.27201512,111670.0,111660.0,0.17477]
[1756824474603,0.001,111670.0,111660.0,0.78579894]
[1756824475231,0.001,111670.0,111660.0,0.82552689]
[1756824475664,0.001,111670.0,111660.0,1.2783817]
[1756824476078,0.001,111670.0,111660.0,0.06597795]
[1756824476280,0.18009913,111670.0,111660.0,0.22445795]
[1756824476749,0.18009913,111670.0,111660.0,0.02625]
[1756824476896,0.18009913,111670.0,111660.0,0.18477]
[1756824478334,0.18009913,111670.0,111660.0,0.18473]
[1756824478542,0.27201512,111670.0,111660.0,0.02302]
[1756824479188,0.27201512,111670.0,111660.0,0.02625]
[1756824479661,0.27201512,111670.0,111660.0,0.02302]
[1756824479918,0.75973027,111670.0,111660.0,0.02302]
[1756824480130,0.70555181,111670.0,111660.0,0.021]
[1756824480354,0.73248526,111670.0,111660.0,0.021]
[1756824480574,0.30735149,111670.0,111660.0,0.02302]
[1756824480823,1.07248526,111670.0,111660.0,0.011]
[1756824481291,1.07248526,111670.0,111660.0,0.021]
[1756824481292,1.07348526,111670.0,111660.0,0.021]
[1756824481536,1.16440125,111670.0,111660.0,0.01]
[1756824481719,1.32272125,111670.0,111660.0,0.007]
[1756824482133,1.34232789,111670.0,111660.0,0.007]